[Event "*** Titled Tuesday Blitz"]
[Site "Chess.com"]
[Date "2019.08.06"]
[Round "1"]
[White "Vuk2000"]
[Black "timator"]
[Result "0-1"]
[WhiteElo "2712"]
[BlackElo "2412"]
[TimeControl "180+2"]
[EndTime "13:08:09 PDT"]
[Termination "timator won by resignation"]

1. d4 {[%clk 0:03:01.9]} 1... Nf6 {[%clk 0:02:58.8]} 2. Bg5 {[%clk 0:03:03.2]}
2... d5 {[%clk 0:02:48.4]} 3. Bxf6 {[%clk 0:02:59.5]} 3... exf6 {[%clk
0:02:46.8]} 4. e3 {[%clk 0:03:01.1]} 4... g6 {[%clk 0:02:48.4]} 5. g3 {[%clk
0:02:58.8]} 5... Bg7 {[%clk 0:02:49.8]} 6. Bg2 {[%clk 0:03:00.1]} 6... O-O
{[%clk 0:02:51.4]} 7. Ne2 {[%clk 0:03:01]} 7... b5 {[%clk 0:02:52.4]} 8. a4
{[%clk 0:02:56.6]} 8... bxa4 {[%clk 0:02:46.5]} 9. c4 {[%clk 0:02:57]} 9... Bb7
{[%clk 0:02:43.4]} 10. Nbc3 {[%clk 0:02:56.4]} 10... c6 {[%clk 0:02:40.5]} 11.
Qxa4 {[%clk 0:02:29.6]} 11... Nd7 {[%clk 0:02:33]} 12. c5 {[%clk 0:02:30.8]}
12... Qc7 {[%clk 0:01:39.9]} 13. b4 {[%clk 0:02:17.8]} 13... a6 {[%clk
0:01:26.2]} 14. O-O {[%clk 0:02:18]} 14... f5 {[%clk 0:01:25.8]} 15. Nf4 {[%clk
0:01:53.9]} 15... Nf6 {[%clk 0:01:23.3]} 16. Qa5 {[%clk 0:01:50]} 16... Qd7
{[%clk 0:01:12.9]} 17. Na4 {[%clk 0:01:47.3]} 17... Qe7 {[%clk 0:01:10]} 18. Nb6
{[%clk 0:01:35.8]} 18... Rae8 {[%clk 0:01:10.3]} 19. Rfe1 {[%clk 0:01:29.1]}
19... Ne4 {[%clk 0:01:09.4]} 20. Bf1 {[%clk 0:01:25.7]} 20... g5 {[%clk
0:01:07.4]} 21. Ng2 {[%clk 0:01:09.8]} 21... Nd2 {[%clk 0:01:03.4]} 22. Be2
{[%clk 0:01:11]} 22... Nb3 {[%clk 0:01:03.9]} 23. Qa2 {[%clk 0:01:05.7]} 23...
Nxa1 {[%clk 0:01:04.7]} 24. Rxa1 {[%clk 0:01:07.6]} 24... Bh6 {[%clk 0:00:59.6]}
25. Bxa6 {[%clk 0:00:33.5]} 25... Bxa6 {[%clk 0:00:49.8]} 26. Qxa6 {[%clk
0:00:35.4]} 26... f4 {[%clk 0:00:51.3]} 27. exf4 {[%clk 0:00:36.2]} 27... gxf4
{[%clk 0:00:53.2]} 28. Nh4 {[%clk 0:00:37.5]} 28... Qe4 {[%clk 0:00:45.4]} 29.
Nd7 {[%clk 0:00:38.2]} 29... Bg5 {[%clk 0:00:44.5]} 30. Qxc6 {[%clk 0:00:22.6]}
30... Re6 {[%clk 0:00:43.8]} 31. Qc7 {[%clk 0:00:16.2]} 31... f3 {[%clk
0:00:34.6]} 32. Rf1 {[%clk 0:00:14]} 32... Rfe8 {[%clk 0:00:32.2]} 33. Kh1
{[%clk 0:00:08.3]} 33... Qe1 {[%clk 0:00:29]} 34. Nxf3 {[%clk 0:00:03.1]} 34...
Qxf1+ {[%clk 0:00:29]} 35. Ng1 {[%clk 0:00:04.8]} 35... Re1 {[%clk 0:00:29.4]}
0-1

[Event "*** Titled Tuesday Blitz"]
[Site "Chess.com"]
[Date "2019.08.06"]
[Round "1"]
[White "rst2003"]
[Black "AtabayevSaparmyrat"]
[Result "0-1"]
[WhiteElo "2221"]
[BlackElo "2613"]
[TimeControl "180+2"]
[EndTime "13:08:12 PDT"]
[Termination "AtabayevSaparmyrat won by checkmate"]

1. e4 {[%clk 0:03:00.8]} 1... c5 {[%clk 0:03:00.7]} 2. Nf3 {[%clk 0:03:01.9]}
2... d6 {[%clk 0:03:01.4]} 3. d4 {[%clk 0:03:03.4]} 3... cxd4 {[%clk 0:03:02.7]}
4. Nxd4 {[%clk 0:03:05.3]} 4... Nf6 {[%clk 0:03:03.8]} 5. Nc3 {[%clk 0:03:06.3]}
5... a6 {[%clk 0:03:04.2]} 6. Be3 {[%clk 0:03:07.8]} 6... e5 {[%clk 0:03:03.5]}
7. Nb3 {[%clk 0:03:07.8]} 7... Be7 {[%clk 0:03:03.6]} 8. f3 {[%clk 0:03:08.7]}
8... O-O {[%clk 0:03:02.9]} 9. Qd2 {[%clk 0:03:09.7]} 9... Be6 {[%clk
0:03:03.4]} 10. O-O-O {[%clk 0:03:10.3]} 10... Nbd7 {[%clk 0:03:03.3]} 11. g4
{[%clk 0:03:11.1]} 11... b5 {[%clk 0:03:03.9]} 12. g5 {[%clk 0:03:12.4]} 12...
b4 {[%clk 0:03:04.3]} 13. Ne2 {[%clk 0:03:13.1]} 13... Ne8 {[%clk 0:03:01.2]}
14. f4 {[%clk 0:03:14.2]} 14... a5 {[%clk 0:02:58.8]} 15. f5 {[%clk 0:03:15.1]}
15... Bxb3 {[%clk 0:02:29.4]} 16. cxb3 {[%clk 0:03:15.8]} 16... a4 {[%clk
0:02:30]} 17. bxa4 {[%clk 0:03:17]} 17... Rxa4 {[%clk 0:02:27.8]} 18. Kb1 {[%clk
0:03:18.4]} 18... Qa8 {[%clk 0:02:05.9]} 19. Nc1 {[%clk 0:03:13.1]} 19... Qxe4+
{[%clk 0:02:06.2]} 20. Bd3 {[%clk 0:03:13.9]} 20... Qb7 {[%clk 0:01:55.6]} 21.
Qc2 {[%clk 0:02:28.3]} 21... b3 {[%clk 0:01:23.3]} 22. Nxb3 {[%clk 0:02:24.4]}
22... e4 {[%clk 0:01:12.4]} 23. Bc4 {[%clk 0:02:24.9]} 23... Qc7 {[%clk
0:00:37.6]} 24. g6 {[%clk 0:02:13.2]} 24... Qxc4 {[%clk 0:00:24.9]} 25. Qg2
{[%clk 0:01:59.9]} 25... fxg6 {[%clk 0:00:14.3]} 26. fxg6 {[%clk 0:01:59.9]}
26... h6 {[%clk 0:00:15.3]} 27. Rd4 {[%clk 0:01:56.9]} 27... Qa6 {[%clk
0:00:14.9]} 28. Qxe4 {[%clk 0:01:57]} 28... Rxd4 {[%clk 0:00:15.4]} 29. Bxd4
{[%clk 0:01:54.1]} 29... Ne5 {[%clk 0:00:16.5]} 30. Bxe5 {[%clk 0:01:50.3]}
30... dxe5 {[%clk 0:00:18.4]} 31. Qxe5 {[%clk 0:01:51.8]} 31... Rf1+ {[%clk
0:00:18.9]} 32. Rxf1 {[%clk 0:01:52.1]} 32... Qd3+ {[%clk 0:00:19.5]} 33. Kc1
{[%clk 0:01:45.1]} 33... Bg5+ {[%clk 0:00:18.3]} 34. Qxg5 {[%clk 0:01:26.4]}
34... Qxf1+ {[%clk 0:00:15.9]} 35. Kc2 {[%clk 0:01:27.6]} 35... hxg5 {[%clk
0:00:16.5]} 36. a4 {[%clk 0:01:28.6]} 36... Qg2+ {[%clk 0:00:17.1]} 37. Kc3
{[%clk 0:01:30]} 37... Qxh2 {[%clk 0:00:17.6]} 38. a5 {[%clk 0:01:30.3]} 38...
g4 {[%clk 0:00:17.8]} 39. a6 {[%clk 0:01:30.8]} 39... Qb8 {[%clk 0:00:19.7]} 40.
Nc5 {[%clk 0:01:31]} 40... Qa7 {[%clk 0:00:18.9]} 41. b4 {[%clk 0:01:32.2]}
41... g3 {[%clk 0:00:18.6]} 42. Kc4 {[%clk 0:01:30.6]} 42... g2 {[%clk
0:00:20.5]} 43. b5 {[%clk 0:01:31.8]} 43... g1=Q {[%clk 0:00:21]} 44. Ne6 {[%clk
0:01:32.9]} 44... Qc1+ {[%clk 0:00:19.7]} 45. Kd5 {[%clk 0:01:33.4]} 45... Qd7+
{[%clk 0:00:21.1]} 46. Ke5 {[%clk 0:01:34.1]} 46... Qe1+ {[%clk 0:00:21.4]} 47.
Kf5 {[%clk 0:01:35.5]} 47... Qdxe6+ {[%clk 0:00:22.6]} 48. Kf4 {[%clk
0:01:36.5]} 48... Q1e3# {[%clk 0:00:21.9]} 0-1

[Event "*** Titled Tuesday Blitz"]
[Site "Chess.com"]
[Date "2019.08.06"]
[Round "1"]
[White "Chess_Boxer123"]
[Black "bascheyaro"]
[Result "1-0"]
[WhiteElo "2396"]
[BlackElo "2713"]
[TimeControl "180+2"]
[EndTime "13:08:13 PDT"]
[Termination "Chess_Boxer123 won on time"]

1. d4 {[%clk 0:03:01.4]} 1... Nf6 {[%clk 0:03:00.7]} 2. Bf4 {[%clk 0:02:59.2]}
2... d5 {[%clk 0:03:01.8]} 3. e3 {[%clk 0:03:00.1]} 3... Bf5 {[%clk 0:03:02.4]}
4. c4 {[%clk 0:02:59.4]} 4... e6 {[%clk 0:03:03.4]} 5. Nc3 {[%clk 0:03:00]} 5...
c6 {[%clk 0:03:04.6]} 6. Qb3 {[%clk 0:03:00.7]} 6... Qc8 {[%clk 0:03:05.6]} 7.
Nf3 {[%clk 0:02:57.6]} 7... Be7 {[%clk 0:03:06.4]} 8. h3 {[%clk 0:02:56.2]} 8...
O-O {[%clk 0:03:07.1]} 9. Be2 {[%clk 0:02:56.7]} 9... h6 {[%clk 0:03:07.5]} 10.
O-O {[%clk 0:02:57.8]} 10... Nbd7 {[%clk 0:03:08.9]} 11. Rac1 {[%clk 0:02:58.9]}
11... Re8 {[%clk 0:03:09.8]} 12. cxd5 {[%clk 0:02:57.8]} 12... exd5 {[%clk
0:03:10.6]} 13. Nb5 {[%clk 0:02:59.2]} 13... g5 {[%clk 0:02:48.2]} 14. Bg3
{[%clk 0:02:54.6]} 14... Ne4 {[%clk 0:02:48.2]} 15. Bh2 {[%clk 0:02:55.1]} 15...
Bd8 {[%clk 0:02:48.9]} 16. Rfd1 {[%clk 0:02:52]} 16... a6 {[%clk 0:02:44.6]} 17.
Nd6 {[%clk 0:02:50.7]} 17... Nxd6 {[%clk 0:02:45.8]} 18. Bxd6 {[%clk 0:02:52.6]}
18... Nf6 {[%clk 0:02:46.1]} 19. Bh2 {[%clk 0:02:51.7]} 19... Ne4 {[%clk
0:02:43.2]} 20. Ne5 {[%clk 0:02:52.5]} 20... Bc7 {[%clk 0:02:40.1]} 21. Nf3
{[%clk 0:02:20.3]} 21... Bxh2+ {[%clk 0:02:36.4]} 22. Nxh2 {[%clk 0:02:22.2]}
22... Qb8 {[%clk 0:02:35.8]} 23. Ng4 {[%clk 0:02:19.7]} 23... Bxg4 {[%clk
0:02:36.5]} 24. Bxg4 {[%clk 0:02:21.6]} 24... Re7 {[%clk 0:02:34.2]} 25. Bf5
{[%clk 0:02:17.6]} 25... Nd6 {[%clk 0:02:34.4]} 26. Bd3 {[%clk 0:02:18]} 26...
f5 {[%clk 0:02:33.6]} 27. Re1 {[%clk 0:02:10.6]} 27... Qf8 {[%clk 0:02:28.7]}
28. Qd1 {[%clk 0:02:06.9]} 28... Rae8 {[%clk 0:02:23.5]} 29. Qh5 {[%clk
0:02:07.6]} 29... Qf6 {[%clk 0:02:24.1]} 30. Re2 {[%clk 0:02:06.6]} 30... Kg7
{[%clk 0:02:24.1]} 31. Rce1 {[%clk 0:02:07.5]} 31... Qf7 {[%clk 0:02:21.3]} 32.
Qxf7+ {[%clk 0:02:07.1]} 32... Kxf7 {[%clk 0:02:22.6]} 33. f3 {[%clk 0:02:05.8]}
33... Kf6 {[%clk 0:02:23.2]} 34. Kf2 {[%clk 0:02:07.1]} 34... Re6 {[%clk
0:02:19.6]} 35. g4 {[%clk 0:02:08.1]} 35... R8e7 {[%clk 0:02:18.6]} 36. b4
{[%clk 0:02:06]} 36... fxg4 {[%clk 0:02:15.9]} 37. hxg4 {[%clk 0:02:07.9]} 37...
Kg7 {[%clk 0:02:17.2]} 38. a4 {[%clk 0:02:07.6]} 38... Rf6 {[%clk 0:02:18]} 39.
Kg3 {[%clk 0:02:08.7]} 39... Ref7 {[%clk 0:02:18.7]} 40. Rf2 {[%clk 0:02:09.1]}
40... Rf8 {[%clk 0:02:18.6]} 41. a5 {[%clk 0:01:57.8]} 41... Re6 {[%clk
0:02:13]} 42. e4 {[%clk 0:01:39.1]} 42... Rf4 {[%clk 0:02:04.7]} 43. Rfe2 {[%clk
0:01:32.4]} 43... Ref6 {[%clk 0:02:03.8]} 44. e5 {[%clk 0:01:28.8]} 44... Rxf3+
{[%clk 0:02:04.5]} 45. Kg2 {[%clk 0:01:30.3]} 45... R6f4 {[%clk 0:02:05.5]} 46.
exd6 {[%clk 0:01:29.3]} 46... Rxd3 {[%clk 0:02:03.2]} 47. d7 {[%clk 0:01:30.2]}
47... Rxg4+ {[%clk 0:02:03.1]} 48. Kh1 {[%clk 0:01:28.7]} 1-0

[Event "*** Titled Tuesday Blitz"]
[Site "Chess.com"]
[Date "2019.08.06"]
[Round "1"]
[White "promen1999"]
[Black "ChadBiryani"]
[Result "1-0"]
[WhiteElo "2725"]
[BlackElo "2375"]
[TimeControl "180+2"]
[EndTime "13:08:16 PDT"]
[Termination "promen1999 won by resignation"]

1. d4 {[%clk 0:03:00.6]} 1... Nf6 {[%clk 0:02:51.3]} 2. c4 {[%clk 0:02:56.1]}
2... e5 {[%clk 0:02:48.7]} 3. dxe5 {[%clk 0:02:56.8]} 3... Ng4 {[%clk
0:02:49.7]} 4. Bf4 {[%clk 0:02:54]} 4... g5 {[%clk 0:02:50.4]} 5. Bg3 {[%clk
0:02:52.8]} 5... Bg7 {[%clk 0:02:50.9]} 6. e3 {[%clk 0:02:53.2]} 6... Nxe5
{[%clk 0:02:50.2]} 7. Nc3 {[%clk 0:02:54.4]} 7... Nbc6 {[%clk 0:02:50.3]} 8. a3
{[%clk 0:02:50.7]} 8... a5 {[%clk 0:02:50.4]} 9. Qc2 {[%clk 0:02:51.6]} 9... d6
{[%clk 0:02:50.8]} 10. O-O-O {[%clk 0:02:51.9]} 10... O-O {[%clk 0:02:49.1]} 11.
h4 {[%clk 0:02:49.1]} 11... g4 {[%clk 0:02:49.9]} 12. f4 {[%clk 0:02:42.6]}
12... Nd7 {[%clk 0:02:43.2]} 13. Bd3 {[%clk 0:02:38.9]} 13... h5 {[%clk
0:02:39.2]} 14. Nge2 {[%clk 0:02:34.8]} 14... Nc5 {[%clk 0:02:35.8]} 15. e4
{[%clk 0:02:35.7]} 15... a4 {[%clk 0:02:17.9]} 16. Kb1 {[%clk 0:02:31.9]} 16...
Bd7 {[%clk 0:02:15.2]} 17. f5 {[%clk 0:02:28.9]} 17... Ne5 {[%clk 0:02:11.4]}
18. Nf4 {[%clk 0:02:28.1]} 18... Nexd3 {[%clk 0:02:10.8]} 19. Nxd3 {[%clk
0:02:29]} 19... Nxd3 {[%clk 0:02:11.6]} 20. Rxd3 {[%clk 0:02:29.7]} 20... Bc6
{[%clk 0:02:10.9]} 21. Nd5 {[%clk 0:02:26.6]} 21... Re8 {[%clk 0:02:09.1]} 22.
Re1 {[%clk 0:02:22.2]} 22... Rb8 {[%clk 0:01:47.7]} 23. c5 {[%clk 0:02:18]}
23... Bb5 {[%clk 0:01:23.8]} 24. Rd2 {[%clk 0:02:15.7]} 24... dxc5 {[%clk
0:01:07.9]} 25. Nf4 {[%clk 0:02:11.8]} 25... Qe7 {[%clk 0:01:03.6]} 26. Nxh5
{[%clk 0:02:11]} 26... Be5 {[%clk 0:01:04.7]} 27. f6 {[%clk 0:01:44.2]} 27...
Bxf6 {[%clk 0:00:50.3]} 28. e5 {[%clk 0:01:44.5]} 28... Bg7 {[%clk 0:00:48.5]}
29. Re4 {[%clk 0:01:15.7]} 29... Bd7 {[%clk 0:00:37.8]} 30. Nxg7 {[%clk
0:00:59]} 30... Kxg7 {[%clk 0:00:37.7]} 31. Rf4 {[%clk 0:00:38.5]} 31... Be6
{[%clk 0:00:38.1]} 32. Rf6 {[%clk 0:00:35.8]} 32... Rbd8 {[%clk 0:00:37.6]} 33.
Qc1 {[%clk 0:00:36.2]} 33... Rh8 {[%clk 0:00:35]} 34. Bf4 {[%clk 0:00:35]} 34...
Rxd2 {[%clk 0:00:25.9]} 35. Bxd2 {[%clk 0:00:32.2]} 35... Qd7 {[%clk 0:00:24.5]}
36. Bh6+ {[%clk 0:00:31.3]} 36... Kh7 {[%clk 0:00:22.5]} 37. Qc2+ {[%clk
0:00:30]} 37... Kg8 {[%clk 0:00:23.8]} 38. Rg6+ {[%clk 0:00:31.4]} 38... Kh7
{[%clk 0:00:19.8]} 39. Rxe6+ {[%clk 0:00:32.2]} 39... f5 {[%clk 0:00:20.8]} 40.
Qxf5+ {[%clk 0:00:31.5]} 40... Kg8 {[%clk 0:00:21.2]} 41. Rg6+ {[%clk
0:00:31.1]} 41... Kh7 {[%clk 0:00:22]} 42. Qxd7+ {[%clk 0:00:31.3]} 42... Kxg6
{[%clk 0:00:22.7]} 43. Qg7+ {[%clk 0:00:32.9]} 1-0

[Event "*** Titled Tuesday Blitz"]
[Site "Chess.com"]
[Date "2019.08.06"]
[Round "1"]
[White "RandomOracle"]
[Black "Blazinq"]
[Result "0-1"]
[WhiteElo "2201"]
[BlackElo "2594"]
[TimeControl "180+2"]
[EndTime "13:08:17 PDT"]
[Termination "Blazinq won on time"]

1. d4 {[%clk 0:03:00.1]} 1... d5 {[%clk 0:03:00.4]} 2. c4 {[%clk 0:03:00]} 2...
e6 {[%clk 0:03:01.1]} 3. Nf3 {[%clk 0:02:54.5]} 3... Nf6 {[%clk 0:03:02]} 4. g3
{[%clk 0:02:55.1]} 4... Bb4+ {[%clk 0:03:00.3]} 5. Bd2 {[%clk 0:02:54.4]} 5...
Be7 {[%clk 0:03:01.6]} 6. Bg2 {[%clk 0:02:53.4]} 6... c6 {[%clk 0:03:03.1]} 7.
Qc2 {[%clk 0:02:52.4]} 7... b6 {[%clk 0:03:03.5]} 8. O-O {[%clk 0:02:50.2]} 8...
Nbd7 {[%clk 0:03:04]} 9. cxd5 {[%clk 0:02:42.4]} 9... cxd5 {[%clk 0:03:02.3]}
10. Nc3 {[%clk 0:02:39.1]} 10... O-O {[%clk 0:02:57.7]} 11. Rfc1 {[%clk
0:02:35.9]} 11... Ba6 {[%clk 0:02:55.9]} 12. Qa4 {[%clk 0:02:36.4]} 12... Bb7
{[%clk 0:02:49.4]} 13. Bf4 {[%clk 0:02:14.1]} 13... a6 {[%clk 0:02:45.8]} 14.
Ne5 {[%clk 0:02:06.7]} 14... b5 {[%clk 0:02:44]} 15. Qb3 {[%clk 0:02:05]} 15...
Nxe5 {[%clk 0:02:29.2]} 16. Bxe5 {[%clk 0:01:52.4]} 16... Nd7 {[%clk 0:02:27.9]}
17. Bc7 {[%clk 0:01:42.2]} 17... Qxc7 {[%clk 0:01:50.5]} 18. Nxd5 {[%clk
0:01:42.6]} 18... Qxc1+ {[%clk 0:01:51.6]} 19. Rxc1 {[%clk 0:01:42.9]} 19...
Bxd5 {[%clk 0:01:53.5]} 20. Bxd5 {[%clk 0:01:43]} 20... exd5 {[%clk 0:01:55.4]}
21. Rc7 {[%clk 0:01:33.9]} 21... Rad8 {[%clk 0:01:50.4]} 22. Qxd5 {[%clk
0:01:32.7]} 22... Nf6 {[%clk 0:01:50.8]} 23. Qf3 {[%clk 0:01:20.5]} 23... Bd6
{[%clk 0:01:47.5]} 24. Rc6 {[%clk 0:01:20.7]} 24... Rfe8 {[%clk 0:01:45.7]} 25.
Rxa6 {[%clk 0:01:19.2]} 25... Ne4 {[%clk 0:01:41.4]} 26. e3 {[%clk 0:01:12.1]}
26... Re7 {[%clk 0:01:25.4]} 27. Rb6 {[%clk 0:01:12]} 27... b4 {[%clk
0:01:25.8]} 28. Qf5 {[%clk 0:01:09.8]} 28... Rde8 {[%clk 0:01:15.3]} 29. Kg2
{[%clk 0:01:08.9]} 29... g6 {[%clk 0:01:14.9]} 30. Qd5 {[%clk 0:01:03.7]} 30...
Bc7 {[%clk 0:01:13.3]} 31. Rxb4 {[%clk 0:01:01.7]} 31... h5 {[%clk 0:01:10.8]}
32. Rb7 {[%clk 0:00:57.2]} 32... h4 {[%clk 0:01:02.1]} 33. b4 {[%clk 0:00:30]}
33... h3+ {[%clk 0:01:01.6]} 34. Kxh3 {[%clk 0:00:27.7]} 34... Nxf2+ {[%clk
0:01:01.8]} 35. Kg2 {[%clk 0:00:28.4]} 35... Nd1 {[%clk 0:01:02]} 36. Qf3 {[%clk
0:00:24.1]} 36... Nxe3+ {[%clk 0:01:02.5]} 37. Kh3 {[%clk 0:00:24.4]} 37... Kg7
{[%clk 0:01:01.2]} 0-1

[Event "*** Titled Tuesday Blitz"]
[Site "Chess.com"]
[Date "2019.08.06"]
[Round "1"]
[White "MarcoRiehle"]
[Black "JSMastropiero"]
[Result "0-1"]
[WhiteElo "2641"]
[BlackElo "2330"]
[TimeControl "180+2"]
[EndTime "13:08:19 PDT"]
[Termination "JSMastropiero won by checkmate"]

1. e4 {[%clk 0:03:01.8]} 1... e6 {[%clk 0:02:59]} 2. c4 {[%clk 0:03:02.3]} 2...
d5 {[%clk 0:02:59]} 3. cxd5 {[%clk 0:03:04.2]} 3... exd5 {[%clk 0:02:58.8]} 4.
Qb3 {[%clk 0:03:05.6]} 4... Nf6 {[%clk 0:02:52]} 5. e5 {[%clk 0:03:05.9]} 5...
Ne4 {[%clk 0:02:49.1]} 6. Nf3 {[%clk 0:03:06]} 6... Nc6 {[%clk 0:02:44.8]} 7.
Nc3 {[%clk 0:03:02.8]} 7... Nxc3 {[%clk 0:02:30.4]} 8. dxc3 {[%clk 0:03:04.7]}
8... Bc5 {[%clk 0:02:27.6]} 9. Bd3 {[%clk 0:02:52]} 9... O-O {[%clk 0:02:15.4]}
10. Bf4 {[%clk 0:02:50.6]} 10... d4 {[%clk 0:01:54.1]} 11. O-O-O {[%clk
0:02:47.6]} 11... Be6 {[%clk 0:01:50.5]} 12. Qc2 {[%clk 0:02:45.3]} 12... h6
{[%clk 0:01:46.9]} 13. cxd4 {[%clk 0:02:41.9]} 13... Be7 {[%clk 0:01:15.2]} 14.
a3 {[%clk 0:02:39.7]} 14... Na5 {[%clk 0:01:13.3]} 15. d5 {[%clk 0:02:29.6]}
15... Bxd5 {[%clk 0:01:09.6]} 16. Be4 {[%clk 0:02:28.5]} 16... c6 {[%clk
0:01:09.6]} 17. Bxd5 {[%clk 0:02:25.4]} 17... cxd5 {[%clk 0:01:10]} 18. Kb1
{[%clk 0:02:26.8]} 18... Rc8 {[%clk 0:01:06.5]} 19. Qd3 {[%clk 0:02:25.4]} 19...
Nc4 {[%clk 0:01:04.9]} 20. Qb3 {[%clk 0:02:13.7]} 20... Qd7 {[%clk 0:00:58.7]}
21. Bg3 {[%clk 0:02:07.3]} 21... Rfd8 {[%clk 0:00:58.2]} 22. Ka2 {[%clk
0:02:02.4]} 22... b5 {[%clk 0:00:58]} 23. Rd3 {[%clk 0:01:57.8]} 23... a5 {[%clk
0:00:57]} 24. Rhd1 {[%clk 0:01:58]} 24... Qb7 {[%clk 0:00:54.7]} 25. a4 {[%clk
0:01:55]} 25... Bb4 {[%clk 0:00:51.3]} 26. Nd4 {[%clk 0:01:51.7]} 26... bxa4
{[%clk 0:00:49.9]} 27. Qxa4 {[%clk 0:01:49.8]} 27... Nxb2 {[%clk 0:00:33.9]} 28.
Qb5 {[%clk 0:01:32.8]} 28... Qxb5 {[%clk 0:00:33.2]} 29. Nxb5 {[%clk 0:01:34.7]}
29... Nxd3 {[%clk 0:00:34.1]} 30. Rxd3 {[%clk 0:01:35.2]} 30... Rc2+ {[%clk
0:00:34.1]} 31. Kb3 {[%clk 0:01:35.7]} 31... Re2 {[%clk 0:00:34.7]} 32. Nc7
{[%clk 0:01:29.6]} 32... d4 {[%clk 0:00:33.6]} 33. Nb5 {[%clk 0:01:16.6]} 33...
Rb8 {[%clk 0:00:33]} 34. Nxd4 {[%clk 0:01:14.4]} 34... Be1+ {[%clk 0:00:31.9]}
35. Kc4 {[%clk 0:01:12.5]} 35... Bxf2 {[%clk 0:00:31.9]} 36. Nxe2 {[%clk
0:01:13.1]} 36... Bxg3 {[%clk 0:00:28.5]} 37. Nxg3 {[%clk 0:01:12.3]} 37... g6
{[%clk 0:00:27.7]} 38. Ra3 {[%clk 0:01:10.5]} 38... Rb4+ {[%clk 0:00:26.8]} 39.
Kd3 {[%clk 0:01:05.6]} 39... Rb2 {[%clk 0:00:27.7]} 40. Rxa5 {[%clk 0:01:00.9]}
40... Rxg2 {[%clk 0:00:29.1]} 41. Ne4 {[%clk 0:01:01.7]} 41... Rxh2 {[%clk
0:00:26.5]} 42. Ra7 {[%clk 0:00:54.4]} 42... g5 {[%clk 0:00:23.4]} 43. Ke3
{[%clk 0:00:53.1]} 43... Rb2 {[%clk 0:00:20.1]} 44. Nd6 {[%clk 0:00:52.7]} 44...
Rb3+ {[%clk 0:00:16.6]} 45. Ke4 {[%clk 0:00:53.6]} 45... Rb4+ {[%clk 0:00:17.8]}
46. Kf5 {[%clk 0:00:53.8]} 46... Rf4# {[%clk 0:00:19.3]} 0-1

[Event "*** Titled Tuesday Blitz"]
[Site "Chess.com"]
[Date "2019.08.06"]
[Round "1"]
[White "SanchezKelvin"]
[Black "platy3"]
[Result "0-1"]
[WhiteElo "2439"]
[BlackElo "2874"]
[TimeControl "180+2"]
[EndTime "13:08:24 PDT"]
[Termination "platy3 won by resignation"]

1. d4 {[%clk 0:02:49]} 1... Nf6 {[%clk 0:03:00.7]} 2. c4 {[%clk 0:02:47.9]} 2...
e6 {[%clk 0:03:02.3]} 3. Nf3 {[%clk 0:02:48.6]} 3... d5 {[%clk 0:03:02.7]} 4.
Nc3 {[%clk 0:02:49.5]} 4... c6 {[%clk 0:03:03.2]} 5. Bg5 {[%clk 0:02:49.7]} 5...
Nbd7 {[%clk 0:03:03.4]} 6. e3 {[%clk 0:02:49.9]} 6... h6 {[%clk 0:03:04.2]} 7.
Bxf6 {[%clk 0:02:50.7]} 7... Nxf6 {[%clk 0:03:04.6]} 8. Qc2 {[%clk 0:02:52.6]}
8... Qa5 {[%clk 0:02:55.3]} 9. cxd5 {[%clk 0:02:46.2]} 9... exd5 {[%clk
0:02:55.2]} 10. Bd3 {[%clk 0:02:42.3]} 10... Bd6 {[%clk 0:02:56.3]} 11. Ne5
{[%clk 0:02:39.4]} 11... Qc7 {[%clk 0:02:55.6]} 12. f4 {[%clk 0:02:38.8]} 12...
O-O {[%clk 0:02:56.9]} 13. O-O-O {[%clk 0:02:39]} 13... a5 {[%clk 0:02:40.5]}
14. Kb1 {[%clk 0:02:38.4]} 14... a4 {[%clk 0:02:40.1]} 15. h3 {[%clk 0:02:39]}
15... Qa5 {[%clk 0:02:38.8]} 16. g4 {[%clk 0:02:34.7]} 16... a3 {[%clk
0:02:40.1]} 17. b3 {[%clk 0:02:35.5]} 17... Bb4 {[%clk 0:02:41]} 18. Ne2 {[%clk
0:02:32.4]} 18... Ne8 {[%clk 0:02:31.2]} 19. h4 {[%clk 0:02:22.7]} 19... Nd6
{[%clk 0:02:31.9]} 20. g5 {[%clk 0:02:13.5]} 20... h5 {[%clk 0:02:24.7]} 21. Ng3
{[%clk 0:02:13.5]} 21... Nb5 {[%clk 0:02:25.7]} 22. Bxb5 {[%clk 0:01:47.6]}
22... cxb5 {[%clk 0:02:26.8]} 23. Nxh5 {[%clk 0:01:48.4]} 23... Be6 {[%clk
0:02:27.7]} 24. f5 {[%clk 0:01:48.8]} 24... Rac8 {[%clk 0:02:28.3]} 25. Qf2
{[%clk 0:01:47]} 25... Bd6 {[%clk 0:02:19.7]} 26. fxe6 {[%clk 0:01:39.6]} 26...
fxe6 {[%clk 0:02:20.6]} 27. Nf4 {[%clk 0:01:40.6]} 27... Bxe5 {[%clk 0:00:57.5]}
28. dxe5 {[%clk 0:01:39.9]} 28... Qc3 {[%clk 0:00:57.4]} 29. Qd2 {[%clk
0:01:24.3]} 29... Qxe5 {[%clk 0:00:55]} 30. Rc1 {[%clk 0:00:45.7]} 30... Rc6
{[%clk 0:00:50]} 31. Rxc6 {[%clk 0:00:27.8]} 31... bxc6 {[%clk 0:00:50.7]} 32.
Rc1 {[%clk 0:00:27.8]} 32... d4 {[%clk 0:00:51.4]} 33. Ng6 {[%clk 0:00:26]}
33... Qe4+ {[%clk 0:00:48.4]} 34. Qc2 {[%clk 0:00:27.1]} 34... d3 {[%clk
0:00:50]} 35. Ne7+ {[%clk 0:00:23.8]} 35... Kh7 {[%clk 0:00:48.9]} 36. Qd2
{[%clk 0:00:23.7]} 36... Rf2 {[%clk 0:00:47]} 37. g6+ {[%clk 0:00:23.2]} 37...
Kh6 {[%clk 0:00:47.2]} 38. Ng8+ {[%clk 0:00:17.9]} 38... Kxg6 {[%clk 0:00:39]}
39. Qxf2 {[%clk 0:00:08.6]} 39... d2+ {[%clk 0:00:39]} 0-1